{"text_format":"1","workbook":"xlsx","n_sheets":9,"sheets":["What is the CM Workbook","PRET","Change inventory and impacts","Contributors Table","PM-CM Integrated Plan How-to","PM-CM Integrated Plan","CM Activity Tracker","Data list PRET","Data list CM-PM"],"not_rendered":{"charts":0,"images":2,"macros":1,"external_links":0,"defined_names":3,"comments":2,"pivot_tables":0},"unopened":[],"bounds":{"document_bytes":16777216,"sheet_cells":100000,"rows_first":2000,"rows_last":500,"rows_between":2000,"halvings":0,"cell_chars":16384,"cell_head_chars":4096},"cells_cut":0,"cells_raw":0,"read":"whole","date_system":"1900"}

{"sheet":"What is the CM Workbook","index":0,"n_rows":0,"n_cols":0,"rows_kept":0,"cut":false,"hidden":false,"merged":[]}

{"sheet":"PRET","index":1,"n_rows":129,"n_cols":7,"rows_kept":129,"cut":false,"hidden":false,"merged":[[0,0,0,6],[1,1,1,4],[2,2,2,4],[3,2,3,4],[4,0,4,6],[5,3,6,3],[5,4,6,4],[5,5,6,5],[5,6,6,6],[6,0,6,2],[2,5,2,6],[21,0,21,2],[22,1,22,2],[35,1,35,2],[41,1,41,2],[44,1,44,2],[7,3,8,3],[7,4,8,4],[7,5,8,5],[7,6,8,6],[8,1,8,2],[39,0,39,2],[40,1,40,2],[40,3,41,3],[43,1,43,2],[43,3,44,3],[13,3,14,3],[13,4,14,4],[13,5,14,5],[13,6,14,6],[14,1,14,2],[10,3,11,3],[10,4,11,4],[7,1,7,2],[9,0,9,2],[10,1,10,2],[12,0,12,2],[13,1,13,2],[15,0,15,2],[16,1,16,2],[18,0,18,2],[19,1,19,2],[10,5,11,5],[10,6,11,6],[11,1,11,2],[19,3,20,3],[19,4,20,4],[19,5,20,5],[19,6,20,6],[20,1,20,2],[16,3,17,3],[16,4,17,4],[16,5,17,5],[16,6,17,6],[17,1,17,2],[24,0,24,2],[25,1,25,2],[25,3,26,3],[25,4,26,4],[25,5,26,5],[22,3,23,3],[22,4,23,4],[22,5,23,5],[22,6,23,6],[23,1,23,2],[26,1,26,2],[30,0,30,2],[31,1,31,2],[31,3,32,3],[31,4,32,4],[31,5,32,5],[25,6,26,6],[27,0,27,2],[28,1,28,2],[28,3,29,3],[28,4,29,4],[28,5,29,5],[28,6,29,6],[29,1,29,2],[32,1,32,2],[31,6,32,6],[33,0,33,2],[34,1,34,2],[34,3,35,3],[34,4,35,4],[34,5,35,5],[34,6,35,6],[36,0,36,2],[37,1,37,2],[37,3,38,3],[43,4,44,4],[43,5,44,5],[43,6,44,6],[45,0,45,6],[40,4,41,4],[40,5,41,5],[40,6,41,6],[42,0,42,2],[37,4,38,4],[37,5,38,5],[37,6,38,6],[38,1,38,2],[63,0,63,6],[64,0,64,6],[65,2,65,4],[66,2,66,4],[67,0,67,6],[46,0,46,6],[61,0,61,6],[62,1,62,4],[60,0,60,6],[47,0,47,6],[49,0,49,6],[53,0,53,6],[52,0,52,6],[58,0,58,6],[57,0,57,6],[59,0,59,6],[54,1,54,5],[55,1,55,5],[56,1,56,5],[50,1,50,5],[48,1,48,5],[51,1,51,5],[73,2,73,4],[74,2,74,4],[75,0,75,6],[76,0,76,6],[77,2,77,4],[68,0,68,6],[69,2,69,4],[70,2,70,4],[71,0,71,6],[72,0,72,6],[83,2,83,4],[84,0,84,6],[85,0,85,6],[86,2,86,4],[87,2,87,4],[78,2,78,4],[79,0,79,6],[80,0,80,6],[81,0,81,6],[82,2,82,4],[93,0,93,6],[94,2,94,4],[95,2,95,4],[96,0,96,6],[97,1,97,4],[88,0,88,6],[89,0,89,6],[90,2,90,4],[91,2,91,4],[92,0,92,6],[101,0,101,1],[101,2,101,5],[102,0,102,1],[102,2,102,5],[103,0,103,1],[103,2,103,5],[98,0,98,1],[98,2,98,5],[99,0,99,1],[99,2,99,5],[100,0,100,1],[100,2,100,5],[107,0,107,1],[107,2,107,5],[108,0,108,1],[108,2,108,5],[109,0,109,1],[109,2,109,5],[104,0,104,1],[104,2,104,5],[105,0,105,1],[105,2,105,5],[106,0,106,1],[106,2,106,5],[113,0,113,1],[113,2,113,5],[114,0,114,1],[114,2,114,5],[115,0,115,1],[115,2,115,5],[110,0,110,1],[110,2,110,5],[111,0,111,1],[111,2,111,5],[112,0,112,1],[112,2,112,5],[119,0,119,1],[119,2,119,5],[120,0,120,1],[120,2,120,5],[121,0,121,1],[121,2,121,5],[116,0,116,1],[116,2,116,5],[117,0,117,1],[117,2,117,5],[118,0,118,1],[118,2,118,5],[132,0,132,6],[125,0,125,1],[125,2,125,5],[126,0,126,1],[126,2,126,5],[127,0,127,1],[127,2,127,5],[122,0,122,1],[122,2,122,5],[123,0,123,1],[123,2,123,5],[124,0,124,1],[124,2,124,5],[128,0,128,1],[128,2,128,5],[129,0,129,1],[129,2,129,5],[130,0,130,1],[130,2,130,5],[131,0,131,1],[131,2,131,5]]}
["Project Realization Evaluation Tool (PRET)"]
[]
[null,"organization: "]
[null,"project location:  "]
["Key Project Resources "]
[null,null,null,"Capacity to support the project","Level of influence","Level of interest","Support for the project "]
["Project manager/accomodations lead"]
["Name "]
["Title"]
["Project sponsor "]
["Name "]
["Title"]
["Executive sponsor"]
["Name "]
["Title"]
["Change manager"]
["Name "]
["Title"]
["Communications representative"]
["Name "]
["Title"]
["Facilities/Design representative"]
["Name "]
["Title"]
["IM representative"]
["Name "]
["Title"]
["IT representative"]
["Name "]
["Title"]
["HR representative"]
["Name "]
["Title"]
["Security representative"]
["Name "]
["Title"]
["OHS representative"]
["Name "]
["Title"]
["Indigenous Employee Group"]
["Main contact Name "]
["Title"]
["Diversity, Equity, and Inclusion Employee Group(s)"]
[" Main contact Name "]
["Title"]
["Organizational and Project Vision "]
["What is your organization's Vision for a Workplace Modernization project? Insert below"]
["After working from home for the last two years, it is now time to look to the future and plan our return to the workplace.\n\n"]
[null,"Insert Department name"]
[" will be taking part in a workplace modernization project, which aims to provide a modernized workplace environment for \n"]
[null,"all employees OR  employees of a specific sector/branch (specify which ones)."]
[null,"Provide details on location and scope (ie: building address, and floors)"]
["The space will be part of  an  ecosystem of spaces available to support employees in our new hybrid work model. Employee feedback and engagement will influence the design and utilization of the space as well as inform future modernization projects.\n\nThe space will be designed to foster a culture of innovation and improving digital technology  to encourage government wide collaboration, flexibility and efficiency. It will also integrate sustainability and improve the overall health and well-being  of employees and ensuring inclusivity for all. "]
["Additionally, we aim to\n"]
[null,null,null,null,null,null,","]
[null,null,null,null,null,null,", and"]
[null,null,null,null,null,null,"."]
["We will continue to adapt and offer support to all employees during the course of this modernization project. Together our contributions help shape the future of our organization! "]
[]
["insert your vision here"]
[]
["Project Management Readiness Assessment "]
[]
["Sponsorship "]
["Our organization's workplace strategy is being supported by a project sponsor that can be active and visible  throughout the entire project. The project sponsor has the necessary authority over the people, processes, and systems to authorize and fund the necessary changes. "]
[]
[]
["Leadership "]
["Our organization's senior leaders have made workplace modernization a priority. Senior leaders are ready to communicate this change in the context of other competing priorities and are willing to walk the talk."]
[]
[]
["Key enablers "]
["Our organization has developed a workplace modernization strategy and has the necessary resources to implement the strategy, including project champions,  a project integrator and subject matter experts."]
[]
[]
["Change management, communications and training"]
["Our organization has a structured change management approach for the project and has identified trained resources for change management. Resources are available to provide communication advice, develop communications products and provide training to employees."]
[]
[]
["Change Readiness Assessment "]
["History of change"]
["Our organization's history of change is successful, employees have embraced the past changes and did not revert back to old ways. "]
[]
[]
["Culture of Innovation "]
["Our organization is open to new ideas and innovation, employees are rewarded for risk taking and embracing change. "]
[]
[]
["Leadership and Managers "]
["Senior leaders and managers in our organization are highly skilled at managing change, performance is evaluated based on results and not based on employees’ presence."]
[]
[]
["Hybrid Work"]
["Employees in our organization are encouraged, trusted and empowered to make choices about when, where and how they work based on what makes sense. Remote work (i.e. telework) is supported with policies, agreements and/or other mechanisms."]
[]
[]
["Client Enabling Initiatives "]
[]
["Enabling Sector",null,"Client Enabling Initiatives  ",null,null,null,"Status"]
["Information technology (IT)",null,"Secret/classified network access"]
["Information technology (IT)",null,"Print-on-demand"]
["Information technology (IT)",null,"Audio-visual equipment (videoconferencing , Clickshare, etc.)"]
["Information technology (IT)",null,"Collaboration tools and platforms  (MS Teams, Miro, Slack, etc.)"]
["Information technology (IT)",null,"Applications via phones (elevator, access card, booking system, etc.)"]
["Information technology (IT)",null,"Booking system "]
["Information technology (IT)",null,"Cloud-based tools and software   (Microsoft 365, OneDrive, etc.)"]
["Information technology (IT)",null,"Wi-Fi: private and/or public"]
["Human resources (HR)",null,"Policies and directives adapted to hybrid working"]
["Human resources (HR)",null,"Community norms / team charters"]
["Human resources (HR)",null,"OHS: Assignment of first aiders"]
["Human resources (HR)",null,"Interim work agreement / telework agreement"]
["Human resources (HR)",null,"Managing employees in a hybrid working model"]
["Human resources (HR)",null,"Onboarding of new employees in a hybrid working environment "]
["Information management (IM)",null,"Digitization (paper storage space reduction)"]
["Information management (IM)",null,"Imaging services"]
["Information management (IM)",null,"Implementation of an information management system (GCdocs, SharePoint, EDRMS, OneDrive, etc)"]
["Information management (IM)",null,"Digitalization of processes "]
["Security",null,"Emergency procedures"]
["Security",null,"Access card system"]
["Security",null,"Working with protected/confidential information in a shared space "]
["Security",null,"Assignment of Fire Warden role"]
["Facilities and interior design",null,"Access to and working in an ecosystem of spaces "]
["Facilities and interior design",null,"Activity-based working environment: shared seating "]
["Facilities and interior design",null,"Activity-based working environment: workpoint variety"]
["Facilities and interior design",null,"Activity-based working environment: work zones"]
["Facilities and interior design",null,"Ergonomics, accessibility and inclusivity in all workpoints "]
["Facilities and interior design",null,"Smart office (lights, temperature regulation, auto blinds, etc.)"]
["Facilities and interior design",null,"Utilization of day lockers"]
["Facilities and interior design",null,"Removal of personal and business assets"]

{"sheet":"Change inventory and impacts","index":2,"n_rows":41,"n_cols":8,"rows_kept":41,"cut":false,"hidden":false,"merged":[[36,0,36,1],[36,2,36,5],[33,0,33,1],[33,2,33,5],[34,0,34,1],[34,2,34,5],[35,0,35,1],[35,2,35,5],[30,0,30,1],[30,2,30,5],[31,0,31,1],[31,2,31,5],[32,0,32,1],[32,2,32,5],[27,0,27,1],[27,2,27,5],[28,0,28,1],[28,2,28,5],[29,0,29,1],[29,2,29,5],[24,0,24,1],[24,2,24,5],[25,0,25,1],[25,2,25,5],[26,0,26,1],[26,2,26,5],[21,0,21,1],[21,2,21,5],[22,0,22,1],[22,2,22,5],[23,0,23,1],[23,2,23,5],[18,0,18,1],[18,2,18,5],[19,0,19,1],[19,2,19,5],[20,0,20,1],[20,2,20,5],[15,0,15,1],[15,2,15,5],[16,0,16,1],[16,2,16,5],[17,0,17,1],[17,2,17,5],[12,0,12,1],[12,2,12,5],[13,0,13,1],[13,2,13,5],[14,0,14,1],[14,2,14,5],[9,0,9,1],[9,2,9,5],[10,0,10,1],[10,2,10,5],[11,0,11,1],[11,2,11,5],[0,0,0,7],[7,0,7,1],[7,2,7,5],[8,0,8,1],[8,2,8,5],[40,0,40,1],[40,2,40,5],[37,0,37,1],[37,2,37,5],[38,0,38,1],[38,2,38,5],[39,0,39,1],[39,2,39,5]]}
["Change Inventory and Impact Assessment"]
[]
[]
[]
[]
[]
[]
[{"$f":"PRET!A99","v":"Enabling Sector"},null,{"$f":"PRET!C99","v":"Client Enabling Initiatives  "},null,null,null,{"$f":"PRET!G99","v":"Status"},"Change Impact"]
[{"$f":"PRET!A100","v":"Information technology (IT)"},null,{"$f":"PRET!C100","v":"Secret/classified network access"},null,null,null,{"$f":"PRET!G100","v":0},"Low"]
[{"$f":"PRET!A101","v":"Information technology (IT)"},null,{"$f":"PRET!C101","v":"Print-on-demand"},null,null,null,{"$f":"PRET!G101","v":0},"Low"]
[{"$f":"PRET!A102","v":"Information technology (IT)"},null,{"$f":"PRET!C102","v":"Audio-visual equipment (videoconferencing , Clickshare, etc.)"},null,null,null,{"$f":"PRET!G102","v":0},"Medium"]
[{"$f":"PRET!A103","v":"Information technology (IT)"},null,{"$f":"PRET!C103","v":"Collaboration tools and platforms  (MS Teams, Miro, Slack, etc.)"},null,null,null,{"$f":"PRET!G103","v":0},"Medium"]
[{"$f":"PRET!A104","v":"Information technology (IT)"},null,{"$f":"PRET!C104","v":"Applications via phones (elevator, access card, booking system, etc.)"},null,null,null,{"$f":"PRET!G104","v":0},"Medium"]
[{"$f":"PRET!A105","v":"Information technology (IT)"},null,{"$f":"PRET!C105","v":"Booking system "},null,null,null,{"$f":"PRET!G105","v":0},"Medium "]
[{"$f":"PRET!A106","v":"Information technology (IT)"},null,{"$f":"PRET!C106","v":"Cloud-based tools and software   (Microsoft 365, OneDrive, etc.)"},null,null,null,{"$f":"PRET!G106","v":0},"Medium"]
[{"$f":"PRET!A107","v":"Information technology (IT)"},null,{"$f":"PRET!C107","v":"Wi-Fi: private and/or public"},null,null,null,{"$f":"PRET!G107","v":0},"Low"]
[{"$f":"PRET!A108","v":"Human resources (HR)"},null,{"$f":"PRET!C108","v":"Policies and directives adapted to hybrid working"},null,null,null,{"$f":"PRET!G108","v":0},"High"]
[{"$f":"PRET!A109","v":"Human resources (HR)"},null,{"$f":"PRET!C109","v":"Community norms / team charters"},null,null,null,{"$f":"PRET!G109","v":0},"Medium"]
[{"$f":"PRET!A110","v":"Human resources (HR)"},null,{"$f":"PRET!C110","v":"OHS: Assignment of first aiders"},null,null,null,{"$f":"PRET!G110","v":0},"Low"]
[{"$f":"PRET!A111","v":"Human resources (HR)"},null,{"$f":"PRET!C111","v":"Interim work agreement / telework agreement"},null,null,null,{"$f":"PRET!G111","v":0},"High"]
[{"$f":"PRET!A112","v":"Human resources (HR)"},null,{"$f":"PRET!C112","v":"Managing employees in a hybrid working model"},null,null,null,{"$f":"PRET!G112","v":0},"High"]
[{"$f":"PRET!A113","v":"Human resources (HR)"},null,{"$f":"PRET!C113","v":"Onboarding of new employees in a hybrid working environment "},null,null,null,{"$f":"PRET!G113","v":0},"Low"]
[{"$f":"PRET!A114","v":"Information management (IM)"},null,{"$f":"PRET!C114","v":"Digitization (paper storage space reduction)"},null,null,null,{"$f":"PRET!G114","v":0},"Medium "]
[{"$f":"PRET!A115","v":"Information management (IM)"},null,{"$f":"PRET!C115","v":"Imaging services"},null,null,null,{"$f":"PRET!G115","v":0},"Low"]
[{"$f":"PRET!A116","v":"Information management (IM)"},null,{"$f":"PRET!C116","v":"Implementation of an information management system (GCdocs, SharePoint, EDRMS, OneDrive, etc)"},null,null,null,{"$f":"PRET!G116","v":0},"High"]
[{"$f":"PRET!A117","v":"Information management (IM)"},null,{"$f":"PRET!C117","v":"Digitalization of processes "},null,null,null,{"$f":"PRET!G117","v":0},"Medium"]
[{"$f":"PRET!A118","v":"Security"},null,{"$f":"PRET!C118","v":"Emergency procedures"},null,null,null,{"$f":"PRET!G118","v":0},"Low"]
[{"$f":"PRET!A119","v":"Security"},null,{"$f":"PRET!C119","v":"Access card system"},null,null,null,{"$f":"PRET!G119","v":0},"Low"]
[{"$f":"PRET!A120","v":"Security"},null,{"$f":"PRET!C120","v":"Working with protected/confidential information in a shared space "},null,null,null,{"$f":"PRET!G120","v":0},"Low"]
[{"$f":"PRET!A121","v":"Security"},null,{"$f":"PRET!C121","v":"Assignment of Fire Warden role"},null,null,null,{"$f":"PRET!G121","v":0},"Medium"]
[{"$f":"PRET!A122","v":"Facilities and interior design"},null,{"$f":"PRET!C122","v":"Access to and working in an ecosystem of spaces "},null,null,null,{"$f":"PRET!G122","v":0},"Medium"]
[{"$f":"PRET!A123","v":"Facilities and interior design"},null,{"$f":"PRET!C123","v":"Activity-based working environment: shared seating "},null,null,null,{"$f":"PRET!G123","v":0},"High"]
[{"$f":"PRET!A124","v":"Facilities and interior design"},null,{"$f":"PRET!C124","v":"Activity-based working environment: workpoint variety"},null,null,null,{"$f":"PRET!G124","v":0},"Medium"]
[{"$f":"PRET!A125","v":"Facilities and interior design"},null,{"$f":"PRET!C125","v":"Activity-based working environment: work zones"},null,null,null,{"$f":"PRET!G125","v":0},"Medium"]
[{"$f":"PRET!A126","v":"Facilities and interior design"},null,{"$f":"PRET!C126","v":"Ergonomics, accessibility and inclusivity in all workpoints "},null,null,null,{"$f":"PRET!G126","v":0},"Low"]
[{"$f":"PRET!A127","v":"Facilities and interior design"},null,{"$f":"PRET!C127","v":"Smart office (lights, temperature regulation, auto blinds, etc.)"},null,null,null,{"$f":"PRET!G127","v":0},"Low"]
[{"$f":"PRET!A128","v":"Facilities and interior design"},null,{"$f":"PRET!C128","v":"Utilization of day lockers"},null,null,null,{"$f":"PRET!G128","v":0},"Medium"]
[{"$f":"PRET!A129","v":"Facilities and interior design"},null,{"$f":"PRET!C129","v":"Removal of personal and business assets"},null,null,null,{"$f":"PRET!G129","v":0},"Medium"]
[{"$f":"PRET!A130","v":0},null,{"$f":"PRET!C130","v":0},null,null,null,{"$f":"PRET!G130","v":0},"Low"]
[{"$f":"PRET!A131","v":0},null,{"$f":"PRET!C131","v":0},null,null,null,{"$f":"PRET!G131","v":0},"Low"]
[{"$f":"PRET!A132","v":0},null,{"$f":"PRET!C132","v":0},null,null,null,{"$f":"PRET!G132","v":0},"Low"]

{"sheet":"Contributors Table","index":3,"n_rows":16,"n_cols":9,"rows_kept":16,"cut":false,"hidden":false,"merged":[[0,0,0,8]]}
["Contributors Table"]
[]
[]
[]
[]
[]
["Contributor group","#FTEs \n(full-time employees)","Type of contributor","Level of influence ","Level of interest ","Support for the project ","Opportunities","Challenges/Barriers","First/Next action  "]
["Senior Leaders (DM, ADM, DG and Directors) ",null,"Sponsors (S)","High","High","Neutral",null,null,"Use the 'Communication Template to announce project to leadership team' "]
["People Managers  ",null,"Sponsors (S)","Medium ","High","Neutral",null,null,"Use the 'Communication Template to announce project to leadership team' "]
["Branch 1 Employees",null,"Impacted (I)","Low","High","Neutral",null,null,"Use the 'Communication Template to announce project to employees' once it's been announced to Senior Leaders and People Managers"]
["Branch 2 Employees",null,"Impacted (I)","Low","High","Neutral",null,null,"Use the 'Communication Template to announce project to employees' once it's been announced to Senior Leaders and People Managers"]
["Branch 3 Employees",null,"Impacted (I)","Low","High","Neutral",null,null,"Use the 'Communication Template to announce project to employees' once it's been announced to Senior Leaders and People Managers"]
["Offsite People Managers (of Impacted Employees) ",null,"Indirectly Impacted (II)  ","Medium ","Medium ","Neutral",null,null,"Use the 'Communication Template to announce project to leadership team' "]
["Union(s)",null,"Indirectly Impacted (II)  ","High","High","Neutral",null,null,"Present your WTP project to your union(s) as early as possible in the process and Keep them informed with regular updates. "]
["Canadians",null,"Indirectly Impacted (II)  ","Low","Low","Neutral",null,null,"Keep this contributor informed, specifically on the direct impacts to them, ie. If your address is changing, processes being updated, etc. [content not included in the box as this is specific to each organization]"]
["External Contributors / ‘Clients’ ",null,"Indirectly Impacted (II)  ","Low","Low","Neutral",null,null,"Keep this contributor informed, specifically on the direct impacts to them, ie. If your address is changing, processes being updated, etc. [content not included in the box as this is specific to each organization]"]

{"sheet":"PM-CM Integrated Plan How-to","index":4,"n_rows":0,"n_cols":0,"rows_kept":0,"cut":false,"hidden":false,"merged":[]}

{"sheet":"PM-CM Integrated Plan","index":5,"n_rows":110,"n_cols":68,"rows_kept":110,"cut":false,"hidden":false,"merged":[[0,0,0,8],[2,0,2,67],[6,0,7,11],[0,9,0,17],[0,18,0,26],[0,27,0,35],[0,36,0,44],[0,45,0,53],[0,54,0,62],[0,63,0,67]]}
["PM-CM Integrated Plan"]
[]
["Client name‒Project name\nAddress"]
["Created by: xxxx",null,null,null,null,null,null,null,null,null,"Legend:",null,"Not started",null,null,null,null,"On track",null,null,null,null,"Delayed",null,null,null,null,"Late",null,null,null,null,"Complete"]
[null,null,null,null,null,"Project start date:",null,null,"2022-08-01"]
[null,null,null,null,null,"Scrolling increment:",null,null,0,null,null,null,{"$f":"TEXT(M7,\"mmmm\")","v":"August"},null,null,null,null,null,null,{"$f":"IF(TEXT(T7,\"mmmm\")=M6,\"\",TEXT(T7,\"mmmm\"))","v":""},null,null,null,null,null,null,{"$f":"IF(OR(TEXT(AA7,\"mmmm\")=T6,TEXT(AA7,\"mmmm\")=M6),\"\",TEXT(AA7,\"mmmm\"))","v":""},null,null,null,null,null,null,{"$f":"IF(OR(TEXT(AH7,\"mmmm\")=AA6,TEXT(AH7,\"mmmm\")=T6,TEXT(AH7,\"mmmm\")=M6),\"\",TEXT(AH7,\"mmmm\"))","v":""},null,null,null,null,null,null,{"$f":"IF(OR(TEXT(AO7,\"mmmm\")=AH6,TEXT(AO7,\"mmmm\")=AA6,TEXT(AO7,\"mmmm\")=T6,TEXT(AO7,\"mmmm\")=M6),\"\",TEXT(AO7,\"mmmm\"))","v":""},null,null,null,null,null,null,{"$f":"IF(OR(TEXT(AV7,\"mmmm\")=AO6,TEXT(AV7,\"mmmm\")=AH6,TEXT(AV7,\"mmmm\")=AA6,TEXT(AV7,\"mmmm\")=T6),\"\",TEXT(AV7,\"mmmm\"))","v":"September"},null,null,null,null,null,null,{"$f":"IF(OR(TEXT(BC7,\"mmmm\")=AV6,TEXT(BC7,\"mmmm\")=AO6,TEXT(BC7,\"mmmm\")=AH6,TEXT(BC7,\"mmmm\")=AA6),\"\",TEXT(BC7,\"mmmm\"))","v":""},null,null,null,null,null,null,{"$f":"IF(OR(TEXT(BJ7,\"mmmm\")=BC6,TEXT(BJ7,\"mmmm\")=AV6,TEXT(BJ7,\"mmmm\")=AO6,TEXT(BJ7,\"mmmm\")=AH6),\"\",TEXT(BJ7,\"mmmm\"))","v":""}]
[" \nDate : xx-xx-xx",null,null,null,null,null,null,null,null,null,null,null,{"$f":"IFERROR(Project_Start+Scrolling_Increment,TODAY())","v":"2022-08-01"},{"$f":"M7+1","v":"2022-08-02"},{"$f":"N7+1","v":"2022-08-03"},"2022-08-04","2022-08-05","2022-08-06","2022-08-07",{"$f":"S7+1","v":"2022-08-08"},{"$f":"T7+1","v":"2022-08-09"},"2022-08-10","2022-08-11","2022-08-12","2022-08-13","2022-08-14",{"$f":"Z7+1","v":"2022-08-15"},{"$f":"AA7+1","v":"2022-08-16"},"2022-08-17","2022-08-18","2022-08-19","2022-08-20","2022-08-21",{"$f":"AG7+1","v":"2022-08-22"},{"$f":"AH7+1","v":"2022-08-23"},"2022-08-24","2022-08-25","2022-08-26","2022-08-27","2022-08-28",{"$f":"AN7+1","v":"2022-08-29"},{"$f":"AO7+1","v":"2022-08-30"},"2022-08-31","2022-09-01","2022-09-02","2022-09-03","2022-09-04",{"$f":"AU7+1","v":"2022-09-05"},{"$f":"AV7+1","v":"2022-09-06"},"2022-09-07","2022-09-08","2022-09-09","2022-09-10","2022-09-11",{"$f":"BB7+1","v":"2022-09-12"},"2022-09-13","2022-09-14","2022-09-15","2022-09-16","2022-09-17","2022-09-18","2022-09-19","2022-09-20","2022-09-21","2022-09-22","2022-09-23","2022-09-24","2022-09-25"]
[]
["Project phase","Type of activity","Activity","Lead","Notes","Status ","Progress","Start date","End date","Actual end date","Days",null,{"$f":"LEFT(TEXT(M7,\"ddd\"),1)","v":"M"},"T","W","T","F","S","S","M","T","W","T","F","S","S","M","T","W","T","F","S","S","M","T","W","T","F","S","S","M","T","W","T","F","S","S","M","T","W","T","F","S","S","M","T","W","T","F","S","S","M","T","W","T","F","S","S"]
[]
["Pre-planning and planning","Engagement","EXAMPLE ACTIVITY","John Doe",null,"Delayed",0.8,"2022-08-01","2022-08-14",null,{"$f":"IF(Milestones[[#This Row],[Start date]]=\"\",1,(Milestones[[#This Row],[End date]]-Milestones[[#This Row],[Start date]]))","v":13}]
["Pre-planning and planning","CM Program","CM Workbook",null,null,"Not started",null,null,null,null,{"$f":"IF(Milestones[[#This Row],[Start date]]=\"\",1,(Milestones[[#This Row],[End date]]-Milestones[[#This Row],[Start date]]))","v":1}]
["Pre-planning and planning","CM Program","CM Strategy",null,null,"Not started",0,null,null,null,{"$f":"IF(Milestones[[#This Row],[Start date]]=\"\",1,(Milestones[[#This Row],[End date]]-Milestones[[#This Row],[Start date]]))","v":1}]
["Pre-planning and planning","Communication","Project announcement",null,null,"Not started",0,null,null,null,{"$f":"IF(Milestones[[#This Row],[Start date]]=\"\",1,(Milestones[[#This Row],[End date]]-Milestones[[#This Row],[Start date]]))","v":1}]
["Pre-planning and planning","Engagement","Employee townhall",null,null,"Not started",0,null,null,null,{"$f":"IF(Milestones[[#This Row],[Start date]]=\"\",1,(Milestones[[#This Row],[End date]]-Milestones[[#This Row],[Start date]]))","v":1}]
["Pre-planning and planning","Communication","Design survey invitation",null,null,"Not started",0,null,null,null,{"$f":"IF(Milestones[[#This Row],[Start date]]=\"\",1,(Milestones[[#This Row],[End date]]-Milestones[[#This Row],[Start date]]))","v":1}]
["Pre-planning and planning","Engagement","Removal of personal & business assets",null,null,"Not started",0,null,null,null,{"$f":"IF(Milestones[[#This Row],[Start date]]=\"\",1,(Milestones[[#This Row],[End date]]-Milestones[[#This Row],[Start date]]))","v":1}]
["Pre-planning and planning","Engagement","Change agent network",null,null,"Not started",0,null,null,null,{"$f":"IF(Milestones[[#This Row],[Start date]]=\"\",1,(Milestones[[#This Row],[End date]]-Milestones[[#This Row],[Start date]]))","v":1}]
["Pre-planning and planning","Communication","Communication channel(s) and content",null,null,"Not started",0,null,null,null,{"$f":"IF(Milestones[[#This Row],[Start date]]=\"\",1,(Milestones[[#This Row],[End date]]-Milestones[[#This Row],[Start date]]))","v":1}]
["Implementation","Training","Manager toolkit",null,null,"Not started",0,null,null,null,{"$f":"IF(Milestones[[#This Row],[Start date]]=\"\",1,(Milestones[[#This Row],[End date]]-Milestones[[#This Row],[Start date]]))","v":1}]
["Implementation","Communication","Floor plan announcement",null,null,"Not started",0,null,null,null,{"$f":"IF(Milestones[[#This Row],[Start date]]=\"\",1,(Milestones[[#This Row],[End date]]-Milestones[[#This Row],[Start date]]))","v":1}]
["Implementation","Engagement","Boardroom naming",null,null,"Not started",0,null,null,null,{"$f":"IF(Milestones[[#This Row],[Start date]]=\"\",1,(Milestones[[#This Row],[End date]]-Milestones[[#This Row],[Start date]]))","v":1}]
["Implementation","Training","A day in the life presentation",null,null,"Not started",0,null,null,null,{"$f":"IF(Milestones[[#This Row],[Start date]]=\"\",1,(Milestones[[#This Row],[End date]]-Milestones[[#This Row],[Start date]]))","v":1}]
["Implementation","Engagement","Community norms for the new workplace (etiquette)",null,null,"Not started",0,null,null,null,{"$f":"IF(Milestones[[#This Row],[Start date]]=\"\",1,(Milestones[[#This Row],[End date]]-Milestones[[#This Row],[Start date]]))","v":1}]
["Implementation","Engagement","Team charters",null,null,"Not started",0,null,null,null,{"$f":"IF(Milestones[[#This Row],[Start date]]=\"\",1,(Milestones[[#This Row],[End date]]-Milestones[[#This Row],[Start date]]))","v":1}]
["Implementation","Training","Training content",null,null,"Not started",0,null,null,null,{"$f":"IF(Milestones[[#This Row],[Start date]]=\"\",1,(Milestones[[#This Row],[End date]]-Milestones[[#This Row],[Start date]]))","v":1}]
["Implementation","Communication","Pre-opening announcements",null,null,"Not started",0,null,null,null,{"$f":"IF(Milestones[[#This Row],[Start date]]=\"\",1,(Milestones[[#This Row],[End date]]-Milestones[[#This Row],[Start date]]))","v":1}]
["Implementation","Training","Employee toolkit/user guide",null,null,"Not started",0,null,null,null,{"$f":"IF(Milestones[[#This Row],[Start date]]=\"\",1,(Milestones[[#This Row],[End date]]-Milestones[[#This Row],[Start date]]))","v":1}]
["Implementation","Engagement","Pre-opening townhall",null,null,"Not started",0,null,null,null,{"$f":"IF(Milestones[[#This Row],[Start date]]=\"\",1,(Milestones[[#This Row],[End date]]-Milestones[[#This Row],[Start date]]))","v":1}]
["Implementation","Engagement","Tour of the new workplace",null,null,"Not started",0,null,null,null,{"$f":"IF(Milestones[[#This Row],[Start date]]=\"\",1,(Milestones[[#This Row],[End date]]-Milestones[[#This Row],[Start date]]))","v":1}]
["Implementation","Engagement","Hybrid opening ceremony",null,null,"Not started",0,null,null,null,{"$f":"IF(Milestones[[#This Row],[Start date]]=\"\",1,(Milestones[[#This Row],[End date]]-Milestones[[#This Row],[Start date]]))","v":1}]
["Implementation","Communication","Communication (ongoing)",null,null,"Not started",0,null,null,null,{"$f":"IF(Milestones[[#This Row],[Start date]]=\"\",1,(Milestones[[#This Row],[End date]]-Milestones[[#This Row],[Start date]]))","v":1}]
["Post occupancy","Communication","Change sustainment communiques",null,null,"Not started",0,null,null,null,{"$f":"IF(Milestones[[#This Row],[Start date]]=\"\",1,(Milestones[[#This Row],[End date]]-Milestones[[#This Row],[Start date]]))","v":1}]
["Post occupancy","Communication","PSPC Project Story Collection",null,null,"Not started",0,null,null,null,{"$f":"IF(Milestones[[#This Row],[Start date]]=\"\",1,(Milestones[[#This Row],[End date]]-Milestones[[#This Row],[Start date]]))","v":1}]
["Post occupancy","Communication","Workplace performance survey invitation",null,null,"Not started",0,null,null,null,{"$f":"IF(Milestones[[#This Row],[Start date]]=\"\",1,(Milestones[[#This Row],[End date]]-Milestones[[#This Row],[Start date]]))","v":1}]
["Post occupancy","Training","Training refresher courses (ongoing)",null,null,"Not started",0,null,null,null,{"$f":"IF(Milestones[[#This Row],[Start date]]=\"\",1,(Milestones[[#This Row],[End date]]-Milestones[[#This Row],[Start date]]))","v":1}]
["Post occupancy","CM Program","CM sustainment checklist",null,null,"Not started",0,null,null,null,{"$f":"IF(Milestones[[#This Row],[Start date]]=\"\",1,(Milestones[[#This Row],[End date]]-Milestones[[#This Row],[Start date]]))","v":1}]
["Implementation","PM Program","Secret/classified network access",null,null,"Not started",0,null,null,null,{"$f":"IF(Milestones[[#This Row],[Start date]]=\"\",1,(Milestones[[#This Row],[End date]]-Milestones[[#This Row],[Start date]]))","v":1}]
["Implementation","PM Program","Print-on-demand",null,null,"Not started",0,null,null,null,{"$f":"IF(Milestones[[#This Row],[Start date]]=\"\",1,(Milestones[[#This Row],[End date]]-Milestones[[#This Row],[Start date]]))","v":1}]
["Implementation","PM Program","Audio-visual equipment (videoconferencing , Clickshare, etc.)",null,null,"Not started",0,null,null,null,{"$f":"IF(Milestones[[#This Row],[Start date]]=\"\",1,(Milestones[[#This Row],[End date]]-Milestones[[#This Row],[Start date]]))","v":1}]
["Implementation","PM Program","Collaboration tools and platforms  (MS Teams, Miro, Slack, etc.)",null,null,"Not started",0,null,null,null,{"$f":"IF(Milestones[[#This Row],[Start date]]=\"\",1,(Milestones[[#This Row],[End date]]-Milestones[[#This Row],[Start date]]))","v":1}]
["Implementation","PM Program","Applications via phones (elevator, access card, booking system, etc.)",null,null,"Not started",0,null,null,null,{"$f":"IF(Milestones[[#This Row],[Start date]]=\"\",1,(Milestones[[#This Row],[End date]]-Milestones[[#This Row],[Start date]]))","v":1}]
["Implementation","PM Program","Booking system ",null,null,"Not started",0,null,null,null,{"$f":"IF(Milestones[[#This Row],[Start date]]=\"\",1,(Milestones[[#This Row],[End date]]-Milestones[[#This Row],[Start date]]))","v":1}]
["Implementation","PM Program","Cloud-based tools and software   (Microsoft 365, OneDrive, etc.)",null,null,"Not started",0,null,null,null,{"$f":"IF(Milestones[[#This Row],[Start date]]=\"\",1,(Milestones[[#This Row],[End date]]-Milestones[[#This Row],[Start date]]))","v":1}]
["Implementation","PM Program","Wi-Fi: private and/or public",null,null,"Not started",0,null,null,null,{"$f":"IF(Milestones[[#This Row],[Start date]]=\"\",1,(Milestones[[#This Row],[End date]]-Milestones[[#This Row],[Start date]]))","v":1}]
["Implementation","PM Program","Policies and directives adapted to hybrid working",null,null,"Not started",0,null,null,null,{"$f":"IF(Milestones[[#This Row],[Start date]]=\"\",1,(Milestones[[#This Row],[End date]]-Milestones[[#This Row],[Start date]]))","v":1}]
["Implementation","PM Program","Community norms / team charters",null,null,"Not started",0,null,null,null,{"$f":"IF(Milestones[[#This Row],[Start date]]=\"\",1,(Milestones[[#This Row],[End date]]-Milestones[[#This Row],[Start date]]))","v":1}]
["Implementation","PM Program","OHS: Assignment of first aiders",null,null,"Not started",0,null,null,null,{"$f":"IF(Milestones[[#This Row],[Start date]]=\"\",1,(Milestones[[#This Row],[End date]]-Milestones[[#This Row],[Start date]]))","v":1}]
["Implementation","PM Program","Interim work agreement / telework agreement",null,null,"Not started",0,null,null,null,{"$f":"IF(Milestones[[#This Row],[Start date]]=\"\",1,(Milestones[[#This Row],[End date]]-Milestones[[#This Row],[Start date]]))","v":1}]
["Implementation","PM Program","Managing employees in a hybrid working model",null,null,"Not started",0,null,null,null,{"$f":"IF(Milestones[[#This Row],[Start date]]=\"\",1,(Milestones[[#This Row],[End date]]-Milestones[[#This Row],[Start date]]))","v":1}]
["Implementation","PM Program","Onboarding of employees in a hybrid working environment ",null,null,"Not started",0,null,null,null,{"$f":"IF(Milestones[[#This Row],[Start date]]=\"\",1,(Milestones[[#This Row],[End date]]-Milestones[[#This Row],[Start date]]))","v":1}]
["Implementation","PM Program","Digitization (paper storage space reduction)",null,null,"Not started",0,null,null,null,{"$f":"IF(Milestones[[#This Row],[Start date]]=\"\",1,(Milestones[[#This Row],[End date]]-Milestones[[#This Row],[Start date]]))","v":1}]
["Implementation","PM Program","Imaging services",null,null,"Not started",0,null,null,null,{"$f":"IF(Milestones[[#This Row],[Start date]]=\"\",1,(Milestones[[#This Row],[End date]]-Milestones[[#This Row],[Start date]]))","v":1}]
["Implementation","PM Program","Implementation of an information management system (GCdocs, SharePoint, EDRMS, OneDrive, etc)",null,null,"Not started",0,null,null,null,{"$f":"IF(Milestones[[#This Row],[Start date]]=\"\",1,(Milestones[[#This Row],[End date]]-Milestones[[#This Row],[Start date]]))","v":1}]
["Implementation","PM Program","Digitalization of processes ",null,null,"Not started",0,null,null,null,{"$f":"IF(Milestones[[#This Row],[Start date]]=\"\",1,(Milestones[[#This Row],[End date]]-Milestones[[#This Row],[Start date]]))","v":1}]
["Implementation","PM Program","Emergency procedures",null,null,"Not started",0,null,null,null,{"$f":"IF(Milestones[[#This Row],[Start date]]=\"\",1,(Milestones[[#This Row],[End date]]-Milestones[[#This Row],[Start date]]))","v":1}]
["Implementation","PM Program","Access card system",null,null,"Not started",0,null,null,null,{"$f":"IF(Milestones[[#This Row],[Start date]]=\"\",1,(Milestones[[#This Row],[End date]]-Milestones[[#This Row],[Start date]]))","v":1}]
["Implementation","PM Program","Working in a shared space ",null,null,"Not started",0,null,null,null,{"$f":"IF(Milestones[[#This Row],[Start date]]=\"\",1,(Milestones[[#This Row],[End date]]-Milestones[[#This Row],[Start date]]))","v":1}]
["Implementation","PM Program","Assignment of Fire Warden role",null,null,"Not started",0,null,null,null,{"$f":"IF(Milestones[[#This Row],[Start date]]=\"\",1,(Milestones[[#This Row],[End date]]-Milestones[[#This Row],[Start date]]))","v":1}]
["Implementation","PM Program","Access to and working in an ecosystem of spaces ",null,null,"Not started",0,null,null,null,{"$f":"IF(Milestones[[#This Row],[Start date]]=\"\",1,(Milestones[[#This Row],[End date]]-Milestones[[#This Row],[Start date]]))","v":1}]
["Implementation","PM Program","Activity-based working environment: shared seating ",null,null,"Not started",0,null,null,null,{"$f":"IF(Milestones[[#This Row],[Start date]]=\"\",1,(Milestones[[#This Row],[End date]]-Milestones[[#This Row],[Start date]]))","v":1}]
["Implementation","PM Program","Activity-based working environment: workpoint variety",null,null,"Not started",0,null,null,null,{"$f":"IF(Milestones[[#This Row],[Start date]]=\"\",1,(Milestones[[#This Row],[End date]]-Milestones[[#This Row],[Start date]]))","v":1}]
["Implementation","PM Program","Activity-based working environment: work zones",null,null,"Not started",0,null,null,null,{"$f":"IF(Milestones[[#This Row],[Start date]]=\"\",1,(Milestones[[#This Row],[End date]]-Milestones[[#This Row],[Start date]]))","v":1}]
["Implementation","PM Program","Ergonomics, accessibility and inclusivity in all workpoints ",null,null,"Not started",0,null,null,null,{"$f":"IF(Milestones[[#This Row],[Start date]]=\"\",1,(Milestones[[#This Row],[End date]]-Milestones[[#This Row],[Start date]]))","v":1}]
["Implementation","PM Program","Smart office (lights, temperature regulation, auto blinds, etc.)",null,null,"Not started",0,null,null,null,{"$f":"IF(Milestones[[#This Row],[Start date]]=\"\",1,(Milestones[[#This Row],[End date]]-Milestones[[#This Row],[Start date]]))","v":1}]
["Implementation","PM Program","Lockers",null,null,"Not started",0,null,null,null,{"$f":"IF(Milestones[[#This Row],[Start date]]=\"\",1,(Milestones[[#This Row],[End date]]-Milestones[[#This Row],[Start date]]))","v":1}]
["Pre-planning and planning","PM Program","Mini design survey (functional program)",null,null,"Not started",0,null,null,null,{"$f":"IF(Milestones[[#This Row],[Start date]]=\"\",1,(Milestones[[#This Row],[End date]]-Milestones[[#This Row],[Start date]]))","v":1}]
["Pre-planning and planning","PM Program","Functional programming workshop",null,null,"Not started",0,null,null,null,{"$f":"IF(Milestones[[#This Row],[Start date]]=\"\",1,(Milestones[[#This Row],[End date]]-Milestones[[#This Row],[Start date]]))","v":1}]
["Implementation","PM Program","Client approval on design",null,null,"Not started",0,null,null,null,{"$f":"IF(Milestones[[#This Row],[Start date]]=\"\",1,(Milestones[[#This Row],[End date]]-Milestones[[#This Row],[Start date]]))","v":1}]
[null,null,null,null,null,"Not started",0,null,null,null,{"$f":"IF(Milestones[[#This Row],[Start date]]=\"\",1,(Milestones[[#This Row],[End date]]-Milestones[[#This Row],[Start date]]))","v":1}]
[null,null,null,null,null,"Not started",0,null,null,null,{"$f":"IF(Milestones[[#This Row],[Start date]]=\"\",1,(Milestones[[#This Row],[End date]]-Milestones[[#This Row],[Start date]]))","v":1}]
[null,null,null,null,null,"Not started",0,null,null,null,{"$f":"IF(Milestones[[#This Row],[Start date]]=\"\",1,(Milestones[[#This Row],[End date]]-Milestones[[#This Row],[Start date]]))","v":1}]
[null,null,null,null,null,"Not started",0,null,null,null,{"$f":"IF(Milestones[[#This Row],[Start date]]=\"\",1,(Milestones[[#This Row],[End date]]-Milestones[[#This Row],[Start date]]))","v":1}]
[null,null,null,null,null,"Not started",0,null,null,null,{"$f":"IF(Milestones[[#This Row],[Start date]]=\"\",1,(Milestones[[#This Row],[End date]]-Milestones[[#This Row],[Start date]]))","v":1}]
[null,null,null,null,null,"Not started",0,null,null,null,{"$f":"IF(Milestones[[#This Row],[Start date]]=\"\",1,(Milestones[[#This Row],[End date]]-Milestones[[#This Row],[Start date]]))","v":1}]
[null,null,null,null,null,"Not started",0,null,null,null,{"$f":"IF(Milestones[[#This Row],[Start date]]=\"\",1,(Milestones[[#This Row],[End date]]-Milestones[[#This Row],[Start date]]))","v":1}]
[null,null,null,null,null,"Not started",0,null,null,null,{"$f":"IF(Milestones[[#This Row],[Start date]]=\"\",1,(Milestones[[#This Row],[End date]]-Milestones[[#This Row],[Start date]]))","v":1}]
[null,null,null,null,null,"Not started",0,null,null,null,{"$f":"IF(Milestones[[#This Row],[Start date]]=\"\",1,(Milestones[[#This Row],[End date]]-Milestones[[#This Row],[Start date]]))","v":1}]
[null,null,null,null,null,"Not started",0,null,null,null,{"$f":"IF(Milestones[[#This Row],[Start date]]=\"\",1,(Milestones[[#This Row],[End date]]-Milestones[[#This Row],[Start date]]))","v":1}]
[null,null,null,null,null,"Not started",0,null,null,null,{"$f":"IF(Milestones[[#This Row],[Start date]]=\"\",1,(Milestones[[#This Row],[End date]]-Milestones[[#This Row],[Start date]]))","v":1}]
[null,null,null,null,null,"Not started",0,null,null,null,{"$f":"IF(Milestones[[#This Row],[Start date]]=\"\",1,(Milestones[[#This Row],[End date]]-Milestones[[#This Row],[Start date]]))","v":1}]
[null,null,null,null,null,"Not started",0,null,null,null,{"$f":"IF(Milestones[[#This Row],[Start date]]=\"\",1,(Milestones[[#This Row],[End date]]-Milestones[[#This Row],[Start date]]))","v":1}]
[null,null,null,null,null,"Not started",0,null,null,null,{"$f":"IF(Milestones[[#This Row],[Start date]]=\"\",1,(Milestones[[#This Row],[End date]]-Milestones[[#This Row],[Start date]]))","v":1}]
[null,null,null,null,null,"Not started",0,null,null,null,{"$f":"IF(Milestones[[#This Row],[Start date]]=\"\",1,(Milestones[[#This Row],[End date]]-Milestones[[#This Row],[Start date]]))","v":1}]
[null,null,null,null,null,"Not started",0,null,null,null,{"$f":"IF(Milestones[[#This Row],[Start date]]=\"\",1,(Milestones[[#This Row],[End date]]-Milestones[[#This Row],[Start date]]))","v":1}]
[null,null,null,null,null,"Not started",0,null,null,null,{"$f":"IF(Milestones[[#This Row],[Start date]]=\"\",1,(Milestones[[#This Row],[End date]]-Milestones[[#This Row],[Start date]]))","v":1}]
[null,null,null,null,null,"Not started",0,null,null,null,{"$f":"IF(Milestones[[#This Row],[Start date]]=\"\",1,(Milestones[[#This Row],[End date]]-Milestones[[#This Row],[Start date]]))","v":1}]
[null,null,null,null,null,"Not started",0,null,null,null,{"$f":"IF(Milestones[[#This Row],[Start date]]=\"\",1,(Milestones[[#This Row],[End date]]-Milestones[[#This Row],[Start date]]))","v":1}]
[null,null,null,null,null,"Not started",0,null,null,null,{"$f":"IF(Milestones[[#This Row],[Start date]]=\"\",1,(Milestones[[#This Row],[End date]]-Milestones[[#This Row],[Start date]]))","v":1}]
[null,null,null,null,null,"Not started",0,null,null,null,{"$f":"IF(Milestones[[#This Row],[Start date]]=\"\",1,(Milestones[[#This Row],[End date]]-Milestones[[#This Row],[Start date]]))","v":1}]
[null,null,null,null,null,"Not started",0,null,null,null,{"$f":"IF(Milestones[[#This Row],[Start date]]=\"\",1,(Milestones[[#This Row],[End date]]-Milestones[[#This Row],[Start date]]))","v":1}]
[null,null,null,null,null,"Not started",0,null,null,null,{"$f":"IF(Milestones[[#This Row],[Start date]]=\"\",1,(Milestones[[#This Row],[End date]]-Milestones[[#This Row],[Start date]]))","v":1}]
[null,null,null,null,null,"Not started",0,null,null,null,{"$f":"IF(Milestones[[#This Row],[Start date]]=\"\",1,(Milestones[[#This Row],[End date]]-Milestones[[#This Row],[Start date]]))","v":1}]
[null,null,null,null,null,"Not started",0,null,null,null,{"$f":"IF(Milestones[[#This Row],[Start date]]=\"\",1,(Milestones[[#This Row],[End date]]-Milestones[[#This Row],[Start date]]))","v":1}]
[null,null,null,null,null,"Not started",0,null,null,null,{"$f":"IF(Milestones[[#This Row],[Start date]]=\"\",1,(Milestones[[#This Row],[End date]]-Milestones[[#This Row],[Start date]]))","v":1}]
[null,null,null,null,null,"Not started",0,null,null,null,{"$f":"IF(Milestones[[#This Row],[Start date]]=\"\",1,(Milestones[[#This Row],[End date]]-Milestones[[#This Row],[Start date]]))","v":1}]
[null,null,null,null,null,"Not started",0,null,null,null,{"$f":"IF(Milestones[[#This Row],[Start date]]=\"\",1,(Milestones[[#This Row],[End date]]-Milestones[[#This Row],[Start date]]))","v":1}]
[null,null,null,null,null,"Not started",0,null,null,null,{"$f":"IF(Milestones[[#This Row],[Start date]]=\"\",1,(Milestones[[#This Row],[End date]]-Milestones[[#This Row],[Start date]]))","v":1}]
[null,null,null,null,null,"Not started",0,null,null,null,{"$f":"IF(Milestones[[#This Row],[Start date]]=\"\",1,(Milestones[[#This Row],[End date]]-Milestones[[#This Row],[Start date]]))","v":1}]
[null,null,null,null,null,"Not started",0,null,null,null,{"$f":"IF(Milestones[[#This Row],[Start date]]=\"\",1,(Milestones[[#This Row],[End date]]-Milestones[[#This Row],[Start date]]))","v":1}]
[null,null,null,null,null,"Not started",0,null,null,null,{"$f":"IF(Milestones[[#This Row],[Start date]]=\"\",1,(Milestones[[#This Row],[End date]]-Milestones[[#This Row],[Start date]]))","v":1}]
[null,null,null,null,null,"Not started",0,null,null,null,{"$f":"IF(Milestones[[#This Row],[Start date]]=\"\",1,(Milestones[[#This Row],[End date]]-Milestones[[#This Row],[Start date]]))","v":1}]
[null,null,null,null,null,"Not started",0,null,null,null,{"$f":"IF(Milestones[[#This Row],[Start date]]=\"\",1,(Milestones[[#This Row],[End date]]-Milestones[[#This Row],[Start date]]))","v":1}]
[null,null,null,null,null,"Not started",0,null,null,null,{"$f":"IF(Milestones[[#This Row],[Start date]]=\"\",1,(Milestones[[#This Row],[End date]]-Milestones[[#This Row],[Start date]]))","v":1}]
[null,null,null,null,null,"Not started",0,null,null,null,{"$f":"IF(Milestones[[#This Row],[Start date]]=\"\",1,(Milestones[[#This Row],[End date]]-Milestones[[#This Row],[Start date]]))","v":1}]
[null,null,null,null,null,"Not started",0,null,null,null,{"$f":"IF(Milestones[[#This Row],[Start date]]=\"\",1,(Milestones[[#This Row],[End date]]-Milestones[[#This Row],[Start date]]))","v":1}]
[null,null,null,null,null,"Not started",0,null,null,null,{"$f":"IF(Milestones[[#This Row],[Start date]]=\"\",1,(Milestones[[#This Row],[End date]]-Milestones[[#This Row],[Start date]]))","v":1}]
[null,null,null,null,null,"Not started",0,null,null,null,{"$f":"IF(Milestones[[#This Row],[Start date]]=\"\",1,(Milestones[[#This Row],[End date]]-Milestones[[#This Row],[Start date]]))","v":1}]
[null,null,null,null,null,"Not started",0,null,null,null,{"$f":"IF(Milestones[[#This Row],[Start date]]=\"\",1,(Milestones[[#This Row],[End date]]-Milestones[[#This Row],[Start date]]))","v":1}]
[null,null,null,null,null,"Not started",0,null,null,null,{"$f":"IF(Milestones[[#This Row],[Start date]]=\"\",1,(Milestones[[#This Row],[End date]]-Milestones[[#This Row],[Start date]]))","v":1}]

{"sheet":"CM Activity Tracker","index":6,"n_rows":14,"n_cols":9,"rows_kept":14,"cut":false,"hidden":false,"merged":[[0,0,0,8],[2,0,3,0],[2,1,3,1],[2,2,3,2],[2,3,3,3],[2,4,3,4],[2,5,3,5],[2,6,2,7],[2,8,3,8]]}
["CM Activity Tracker"]
[]
["CM ACTIVITY","TYPE OF ACTIVITY","STRATEGY OBJECTIVE","INDICATORS","TARGET","EVALUATION METHOD","DATA COLLECTION",null,"POSSIBLE CORRECTIVE ACTIONS"]
[null,null,null,null,null,null,"Responsibility","Frequency"]
["Communication activities (various - per your needs)","Communication","Inform","# of clicks on website\n# of visitors on website\n# of recurrent visitors on website\n# of participants in Teams Channel\n# of feedback received\n% of opened/read email communications ",null,"Reports","Communications team/Change manager","Every two weeks"]
["Employee townhalls","Engagement","Involve","# of participants\n# of questions received in chat/Q&A platform\n# of feedback received","[EXAMPLE: 60% participation rate for employees, 90% for people managers and 100% for senior leaders]","Observation","Change manager","During and after every townhall"]
["Boardroom naming","Engagement","Involve","# of participants \n# of names received",null,"Observation","Change manager","During and after the activity"]
["Community norms for the new workplace (etiquette)","Engagement","Involve","# of participants\n# of questions received",null,"Observation","Change manager","Every month"]
["Team charters","Engagement","Involve","# of participants",null,"Observation","Managers","During the activity"]
["Tour of the new workplace","Engagement","Involve","# of participants\n# of feedback received",null,"Mini survey","Change manager","During and after the activity"]
["Hybrid opening ceremony","Engagement","Involve","# of participants in person\n# of participants online\n# of participants to in person tours\n# of feedback received",null,"Observation","Change manager","During and after the activity"]
["Training activities (various - per your needs)","Training","Equip","# of participants\n# of feedback received",null,"Mini survey","Change manager","During and after the activity"]
["A day in the life presentation","Training","Equip","# of participants\n# of feedback received",null,"Mini survey","Change manager","During and after the activity"]
["Workplace performance survey invitation","Communication","Reinforce","# of respondants to the survey",null,"Report ","PSPC","After the closing of the survey"]

{"sheet":"Data list PRET","index":7,"n_rows":74,"n_cols":2,"rows_kept":74,"cut":false,"hidden":false,"merged":[[25,0,25,1],[30,0,30,1],[35,0,35,1],[40,0,40,1],[0,0,0,1],[10,0,10,1],[20,0,20,1],[15,0,15,1],[5,0,5,1]]}
["Organizational vision "]
["We have a clear vision","The vision is aligned with GoC vision"]
["We somewhat have a clear  vision","The vision is somewhat aligned with GoC vision"]
["We don’t have a clear vision","The vision is not aligned with GoC Vision "]
[]
["Sponsorship "]
["Our strategy is supported ","The sponsor has necessary authority"]
["Our strategy is somewhat supported ","the sponsor somewhat has the necessary authority"]
["Our strategy is not supported ","the sponsor does not have the necessary authority "]
[]
["Leadership "]
["workplace modernization is a priority to our leaders","Leaders are ready to communicate"]
["workplace modernization is somewhat a priority to our leaders","leaders are somewhat ready to communicate"]
["workplace modernization is not a priority to our leaders","leaders are not ready to communicate"]
[]
["Key enablers "]
["We have a modernization strategy ","We have the necessary resources "]
["We somewhat have a modernization strategy ","We somewhat have the necessary resources "]
["We do not have a modernization strategy ","We don’t have the necessary resources "]
[]
["change management, communications and training"]
["We have a structured change management approach","We have the necessary resources "]
["We somewhat have a structured change management approach","We somewhat have the necessary resources "]
["We do not have a structured change management approach","We don’t have the necessary resources "]
[]
["history of change"]
["Our history of change is very successful ","Employees embraced the changes"]
["Our history of change is somewhat successful ","Employees did not always embrace the past changes, and sometimes reverted to old ways"]
["Our history of change is not successful ","Employees did not embrace past changes, and almost always reverted to old ways"]
[]
["Culture of Innovation"]
["We are open","Employees are rewarded "]
["We are somewhat open ","Employees are somewhat rewarded "]
["We are not open","Employees are not rewarded "]
[]
["Leadership and Managers"]
["Senior leaders and managers are highly skilled ","Performance is evaluated based on results and not based on employees' presence"]
["Senior leaders and managers are somewhat skilled ","Performance is evaluated inconsistently, sometimes based on results and sometimes based on employees' presence"]
["Senior leaders and managers are not very skilled ","Performance in not evaluated based on results and based on employee's presence"]
[]
["Hybrid Work "]
["Employees are encouraged, trusted and empowered","Remote work is supported "]
["Employees are sometimes encouraged, trusted and empowered","Remote work is somewhat supported "]
["Employees are not encouraged, trusted and empowered","Remote work is not supported "]
[]
["STATUS "]
["N/A"]
["Completed"]
["In progress"]
["Not started"]
[]
["Low"]
["Medium "]
["High"]
[]
["Enthusiast"]
["Neutral"]
["Resister"]
[]
["Impacted (I)"]
["Indirectly Impacted (II)  "]
["Sponsors (S)"]
[]
["Provide flexibility and empowers employees"]
["Foster collaboration for all "]
["Make work-life balance a reality "]
["Put employee experiences and quality of service at the core "]
["Use technology in smarter ways "]
["Attract and retain talents"]
["Optimize efficiency of our facilities and creates less waste "]
["Increase personal productivity by providing better technology and work processes"]
["Increase employee and team morale "]
["Offer modern, open, airy, and bright spaces that inspire people "]
["Reduce commute times and greenhouse gas emissions"]

{"sheet":"Data list CM-PM","index":8,"n_rows":13,"n_cols":2,"rows_kept":13,"cut":false,"hidden":false,"merged":[]}
["Phase"]
["Pre-planning and planning"]
["Implementation"]
["Post occupancy"]
[]
[]
[]
[null,"Category"]
[null,"CM Program"]
[null,"PM Program"]
[null,"Communication"]
[null,"Engagement"]
[null,"Training"]